Workbook

Sheet 群体稳定性报告
A1: 群体稳定性报告
B2: 模型发展群体 | D2: 模型实施群体 | F2: 模型发展群体 | G2: 模型实施群体 | H2: 百分比变化 | I2: 百分比相对比例 | J2: 加权系数 | K2: 稳定性加权
A3: 评分范围 | B3: 申请人数 | C3: 申请群体 总人数 | D3: 申请人数 | E3: 申请群体 总人数 | F3: 申请人数 占群体总人数 百分比 | G3: 申请人数 占群体总人数 百分比 | H3: G-F | I3: G/F | J3: Ln(G/F) | K3: J*H
F4: B/C | G4: D/E | H4: D/E-B/C | I4: (D/E)/(B/C) | J4: Ln((D/E)/(B/C)) | K4: Ln((D/E)/(B/C))*(D/E-B/C)
A5: <155 | B5: 2200 | C5: =B14 -> 17333 | D5: 550 | E5: =D14 -> 5634 | F5: =B5/C5 -> 0.1269255178 | G5: =D5/E5 -> 0.09762158324 | H5: =D5/E5-B5/C5 -> -0.02930393455 | I5: =(D5/E5)/(B5/C5) -> 0.7691249556 | J5: =LN((D5/E5)/(B5/C5)) -> -0.2625018316 | K5: =LN((D5/E5)/(B5/C5))*(D5/E5-B5/C5) -> 0.007692336494
A6: [155,194] | B6: 1583 | C6: =B14 -> 17333 | D6: 535 | E6: =D14 -> 5634 | F6: =B6/C6 -> 0.0913286794 | G6: =D6/E6 -> 0.09495917643 | H6: =D6/E6-B6/C6 -> 0.003630497031 | I6: =(D6/E6)/(B6/C6) -> 1.039751993 | J6: =LN((D6/E6)/(B6/C6)) -> 0.03898221652 | K6: =LN((D6/E6)/(B6/C6))*(D6/E6-B6/C6) -> 0.0001415248213
A7: [195,234] | B7: 1970 | C7: =B14 -> 17333 | D7: 350 | E7: =D14 -> 5634 | F7: 0.1136560318 | G7: 0.0621228257 | H7: -0.05153320615 | I7: 0.5465862629 | J7: -0.6040631377 | K7: 0.0311293102
A8: [235,274] | B8: 2540 | C8: =B14 -> 17333 | D8: 470 | E8: =D14 -> 5634 | F8: 0.1465412796 | G8: 0.08342208023 | H8: -0.06311919941 | I8: 0.5692735892 | J8: -0.5633941358 | K8: 0.03556098681
A9: [275,314] | B9: 2450 | C9: =B14 -> 17333 | D9: 485 | E9: =D14 -> 5634 | F9: 0.1413488721 | G9: 0.08608448704 | H9: -0.05526438505 | I9: 0.6090213934 | J9: -0.4959018831 | K9: 0.02740571261
A10: [315,354] | B10: 1620 | C10: =B14 -> 17333 | D10: 620 | E10: =D14 -> 5634 | F10: 0.09346333583 | G10: 0.1100461484 | H10: 0.01658281255 | I10: 1.177425858 | J10: 0.1633305793 | K10: 0.002708480381
A11: [355,394] | B11: 1620 | C11: =B14 -> 17333 | D11: 958 | E11: =D14 -> 5634 | F11: 0.09346333583 | G11: 0.1700390486 | H11: 0.0765757128 | I11: 1.819312858 | J11: 0.5984588792 | K11: 0.04582741526
A12: [395,434] | B12: 2100 | C12: =B14 -> 17333 | D12: 786 | E12: =D14 -> 5634 | F12: 0.1211561761 | G12: 0.1395101171 | H12: 0.01835394107 | I12: 1.151489934 | J12: 0.1410566982 | K12: 0.002588946326
A13: >434 | B13: 1250 | C13: =B14 -> 17333 | D13: 880 | E13: =D14 -> 5634 | F13: 0.07211677148 | G13: 0.1561945332 | H13: 0.08407776171 | I13: 2.165855875 | J13: 0.7728156067 | K13: 0.06497660643
B14: =SUM(B5:B13) -> 17333 | D14: =SUM(D5:D13) -> 5634 | J14: PSI= | K14: =SUM(K5:K13) -> 0.2180313193
